fUSD/lending_fUSD_20260608
["ID","MTS","AMOUNT","RATE_DAILY","PERIOD"]
[424440994,1780896632000,-2242.9292,0.00012455,2]
[424440995,1780896632000,-2500.0,0.00012455,2]
[424441004,1780896632000,-169.38,0.0001252,2]
[424440999,1780896632000,-7849.08,0.00012492,2]
[424441002,1780896632000,-24999.99,0.00012492,2]
[424440997,1780896632000,-9999.99,0.00012492,2]
[424440998,1780896632000,-9416.43,0.00012492,2]
[424441000,1780896632000,-299.99,0.00012492,2]
[424441017,1780896632000,-215.86427702,0.0001262,2]
[424441020,1780896632000,-433.4898344,0.00012645,2]
[424441022,1780896632000,-479.37,0.00012714,2]
[424441024,1780896632000,-500.0,0.00012726,2]
[424441009,1780896632000,-403.347585,0.00012554,2]
[424441006,1780896632000,-500.0,0.00012554,2]
[424441011,1780896632000,-437.83616012,0.00012554,2]
[424441015,1780896632000,-160.0,0.00012561,2]
[424441026,1780896632000,-500.0,0.00012751,2]
[424441013,1780896632000,-2000.0,0.00012555,2]
[424441027,1780896632000,-500.0,0.00012751,3]
[424441028,1780896632000,-500.0,0.00012751,4]
[424441057,1780896632000,-240.98630425,0.00013698,2]
[424441061,1780896632000,-500.0,0.00013698,2]
[424441038,1780896632000,-169.38,0.00013459,2]
[424441058,1780896632000,-500.0,0.00013698,2]
[424441089,1780896632000,-2200.0,0.000143,5]
[424441095,1780896632000,-217.02714826,0.00014356,2]
[424441094,1780896632000,-500.0,0.00014356,2]
[424441093,1780896632000,-211.76743304,0.00014356,2]
[424441098,1780896632000,-2900.0,0.000144,5]
[424441096,1780896632000,-479.33441421,0.00014356,2]
[424441099,1780896632000,-3700.0,0.000145,5]
[424441097,1780896632000,-166.66,0.00014384,2]
[424441101,1780896632000,-433.0,0.00014587,2]
[424441105,1780896632000,-700.0,0.000148,5]
[424441103,1780896632000,-700.0,0.000147,5]
[424441104,1780896632000,-690.53,0.00014759,2]
[424441091,1780896632000,-500.0,0.00014356,2]
[424441102,1780896632000,-700.0,0.000146,5]
[424441112,1780896632000,-700.0,0.000149,5]
[424441111,1780896632000,-25000.0,0.000149,3]
[424441110,1780896632000,-220.75690488,0.000149,2]
[424441106,1780896632000,-50826.10137426,0.0001489,2]
[424441059,1780896632000,-500.0,0.00013698,2]
[424441114,1780896632000,-5239.83457718,0.000149,2]
[424441117,1780896632000,-10561.18404488,0.000149,3]
[424441119,1780896632000,-500.0,0.00014962,2]
[424441116,1780896632000,-645.35800275,0.000149,2]
[424441118,1780896632000,-500.0,0.00014958,2]
[424441115,1780896632000,-505.70637912,0.000149,2]
[424441113,1780896632000,-2685.13632836,0.000149,2]
[424441107,1780896632000,-50826.10137417,0.00014891,2]
[424441092,1780896632000,-189.20147767,0.00014356,2]
[424441109,1780896632000,-7669.60199289,0.00014892,2]
[424441090,1780896632000,-224.62240295,0.00014356,2]
[424441100,1780896632000,-500.0,0.00014504,2]
[424441060,1780896632000,-500.0,0.00013698,2]
[424441065,1780896632000,-500.0,0.00013698,2]
[424441075,1780896632000,-166.66,0.00013699,2]
[424441064,1780896632000,-500.0,0.00013698,2]
[424441066,1780896632000,-500.0,0.00013698,2]
[424441069,1780896632000,-500.0,0.00013698,2]
[424441072,1780896632000,-500.0,0.00013698,2]
[424441071,1780896632000,-500.0,0.00013698,2]
[424441067,1780896632000,-500.0,0.00013698,2]
[424441070,1780896632000,-500.0,0.00013698,2]
[424441073,1780896632000,-500.0,0.00013698,2]
[424441074,1780896632000,-200.0,0.00013699,2]
[424441108,1780896632000,-43156.49938128,0.00014892,2]
[424441088,1780896632000,-166.66,0.00014247,2]
[424441086,1780896632000,-1400.0,0.000142,5]
[424441068,1780896632000,-500.0,0.00013698,2]
[424441082,1780896632000,-166.66,0.00013973,2]
[424441085,1780896632000,-166.66,0.0001411,2]
[424441083,1780896632000,-2324.80038927,0.00014,2]
[424441080,1780896632000,-500.0,0.00013907,2]
[424441079,1780896632000,-700.0,0.000139,5]
[424441077,1780896632000,-169.38,0.00013772,2]
[424441087,1780896632000,-1840.15402341,0.0001421,7]
[424441084,1780896632000,-250.0,0.00014,2]
[424441081,1780896632000,-250.0,0.00013907,2]
[424441076,1780896632000,-165.30048582,0.00013699,2]
[424441078,1780896632000,-166.66,0.00013836,2]
[424441121,1780896633000,-500.0,0.00014962,2]
[424441132,1780896633000,-500.0,0.00014962,2]
[424441123,1780896633000,-150.0,0.00014962,2]
[424441134,1780896633000,-322.47344829,0.00014962,2]
[424441120,1780896633000,-500.0,0.00014962,2]
[424441126,1780896633000,-500.0,0.00014962,2]
[424441124,1780896633000,-500.0,0.00014962,2]
[424441125,1780896633000,-199.68095837,0.00014962,2]
[424441136,1780896633000,-500.0,0.00014962,2]
[424441122,1780896633000,-500.0,0.00014962,2]
[424441127,1780896633000,-500.0,0.00014962,2]
[424441139,1780896633000,-256.38109004,0.00014986,2]
[424441131,1780896633000,-500.0,0.00014962,2]
[424441133,1780896633000,-500.0,0.00014962,2]
[424441137,1780896633000,-500.0,0.00014962,2]
[424441128,1780896633000,-500.0,0.00014962,2]
[424441129,1780896633000,-500.0,0.00014962,2]
[424441135,1780896633000,-500.0,0.00014962,2]
[424441138,1780896633000,-397.57156841,0.00014962,2]
[424441141,1780896633000,-204.90053781,0.00014986,2]
[424441140,1780896633000,-176.91222489,0.00014986,2]
[424441142,1780896633000,-151.0,0.00014986,2]
[424441143,1780896633000,-9294.24201026,0.00014989,2]
[424441130,1780896633000,-500.0,0.00014962,2]
[424441144,1780896634000,-111684.94627941,0.00014989,2]
[424441145,1780896634000,-151.0,0.00014997,2]
[424441146,1780896634000,-18.51059473,0.00014999,2]
[424441150,1780896634000,-306.49459151,0.00014999,2]
[424441148,1780896634000,-300.0,0.00014999,2]
[424441149,1780896634000,-666.0,0.00014999,2]
[424441151,1780896634000,-400.00000001,0.00015,2]
[424441147,1780896634000,-231.48940527,0.00014999,2]
[424441153,1780896634000,-514.62729366,0.00015,2]
[424441152,1780896634000,-925.3821763,0.00015,2]
[424441154,1780896637000,-753.36,0.00012355,2]
[424441164,1780896638000,-568.53506614,0.00015,2]
[424441163,1780896638000,-1478.4342183,0.00015,2]
[424441162,1780896638000,-590.6497287,0.00015,2]
[424441161,1780896638000,-6611974.82853526,0.00015,2]
[424441160,1780896638000,-6469.24547264,0.00015,2]
[424441158,1780896638000,-248.54559909,0.0001499,2]
[424441159,1780896638000,-248.54559909,0.0001499,2]
[424441157,1780896638000,-248.54559909,0.0001499,2]
[424441156,1780896638000,-50826.10137417,0.00014893,2]
[424441155,1780896638000,-422.6177,0.00012355,2]
[424441168,1780896640000,-1687.49605728,0.00015,2]
[424441177,1780896642000,-340.46658888,0.00012455,2]
[424441170,1780896642000,-453.3,0.00012455,2]
[424441182,1780896643000,-6547.69390979,0.00014894,2]
[424441180,1780896643000,-1489.75866079,0.00014894,2]
[424441181,1780896643000,-376.0,0.00014894,2]
[424441178,1780896643000,-1706.23341112,0.00012455,2]
[424441179,1780896643000,-1792.32794307,0.00014894,2]
[424441185,1780896645000,-15901.66943369,0.00014894,2]
[424441183,1780896645000,-220.61,0.0001377,2]
[424441184,1780896645000,-368.39345097,0.00014894,2]
[424441186,1780896646000,-315.55539144,0.00014894,2]
[424441187,1780896646000,-453.24499164,0.00014894,2]
[424441191,1780896646000,-4300.41644867,0.00014896,2]
[424441188,1780896646000,-23581.45759278,0.00014894,2]
[424441189,1780896646000,-30540.19759866,0.00014896,2]
[424441192,1780896646000,-48641.45355133,0.00015,2]
[424441193,1780896646000,-601.71500188,0.00015,2]
[424441194,1780896646000,-22774.05788437,0.00015,2]
[424441190,1780896646000,-15985.48732684,0.00014896,2]
[424441294,1780897754000,-286.06465649,0.00011549,2]
[424441295,1780897756000,-57.77534351,0.00011549,2]
[424441331,1780897832000,-150.99,0.00012124,2]
[424441323,1780897832000,-637749.63103378,0.00012025,2]
[424441327,1780897832000,-500.0,0.000121,2]
[424441318,1780897832000,-227.81779626,0.00011933,7]
[424441316,1780897832000,-343.84,0.00011837,2]
[424441300,1780897832000,-89.79,0.00011645,2]
[424441314,1780897832000,-150.0,0.00011761,2]
[424441312,1780897832000,-7329.22216663,0.00011645,2]
[424441299,1780897832000,-150.0,0.0001164,2]
[424441298,1780897832000,-160.76,0.00011635,2]
[424441325,1780897832000,-11431.18266622,0.00012025,2]
[424441309,1780897832000,-762.36783337,0.00011645,2]
[424441329,1780897832000,-1613.6808,0.000121,2]
[424441321,1780897832000,-166.66,0.00011995,2]
[424441335,1780897832000,-1218.7,0.00012124,2]
[424441333,1780897832000,-9999.99,0.00012124,2]
[424441354,1780897832000,-1880.3185133,0.00012153,2]
[424441353,1780897832000,-1208.5511053,0.00012153,2]
[424441352,1780897832000,-6267.64629606,0.00012153,2]
[424441351,1780897832000,-900.0,0.00012153,2]
[424441341,1780897832000,-343.84,0.00012126,2]
[424441343,1780897832000,-744.19,0.00012126,2]
[424441339,1780897832000,-3437.51,0.00012124,2]
[424441349,1780897832000,-2425.53251015,0.00012153,2]
[424441350,1780897832000,-3597.94415601,0.00012153,2]
[424441346,1780897832000,-9999.99,0.00012126,2]
[424441348,1780897832000,-336.16585107,0.00012152,2]
[424441345,1780897832000,-9999.99,0.00012126,2]
[424441337,1780897832000,-299.99,0.00012124,2]
[424441376,1780897838000,-55652.7312917,0.00012689,2]
[424441378,1780897838000,-500.0,0.00012742,2]
[424441374,1780897838000,-500.0,0.00012688,2]
[424441377,1780897838000,-343.84,0.00012704,2]
[424441375,1780897838000,-285.12658845,0.00012688,2]
[424441373,1780897838000,-440.915217,0.00012688,2]
[424441385,1780897838000,-30749.97535616,0.00013069,2]
[424441381,1780897838000,-250.0,0.00012799,2]
[424441391,1780897838000,-150.0,0.00013488,2]
[424441383,1780897838000,-1852.42,0.00012804,2]
[424441384,1780897838000,-55652.7312917,0.00012966,2]
[424441386,1780897838000,-166.66,0.00013182,2]
[424441371,1780897838000,-500.0,0.00012688,2]
[424441382,1780897838000,-250.0,0.00012799,2]
[424441380,1780897838000,-166.66,0.00012787,2]
[424441372,1780897838000,-254.79881905,0.00012688,2]
[424441363,1780897838000,-343.84,0.00012415,2]
[424441368,1780897838000,-257.74900857,0.00012688,2]
[424441389,1780897838000,-500.0,0.00013352,2]
[424441355,1780897838000,-14469.98277538,0.00012153,2]
[424441357,1780897838000,-500.0,0.00012199,2]
[424441359,1780897838000,-255.15,0.00012294,2]
[424441358,1780897838000,-215.86427702,0.0001227,2]
[424441356,1780897838000,-150.0,0.00012199,2]
[424441367,1780897838000,-356.02,0.00012602,2]
[424441361,1780897838000,-166.66,0.00012391,2]
[424441360,1780897838000,-174.66,0.00012329,2]
[424441365,1780897838000,-250.22838918,0.00012513,2]
[424441364,1780897838000,-30749.97535616,0.00012458,2]
[424441366,1780897838000,-839.76,0.00012573,2]
[424441362,1780897838000,-55652.7312917,0.00012413,2]
[424441369,1780897838000,-248.27867376,0.00012688,2]
[424441379,1780897838000,-30749.97535616,0.00012763,2]
[424441370,1780897838000,-500.0,0.00012688,2]
[424441387,1780897838000,-55652.7312917,0.00013242,2]
[424441396,1780897838000,-151.93797256,0.00013488,2]
[424441390,1780897838000,-30749.97535616,0.00013374,2]
[424441413,1780897838000,-500.0,0.00013698,2]
[424441410,1780897838000,-150.0,0.00013664,2]
[424441416,1780897838000,-500.0,0.00013698,2]
[424441409,1780897838000,-150.0,0.00013648,2]
[424441415,1780897838000,-500.0,0.00013698,2]
[424441428,1780897838000,-500.0,0.00013698,2]
[424441417,1780897838000,-500.0,0.00013698,2]
[424441420,1780897838000,-500.0,0.00013698,2]
[424441421,1780897838000,-500.0,0.00013698,2]
[424441423,1780897838000,-500.65266857,0.00013698,2]
[424441426,1780897838000,-500.0,0.00013698,2]
[424441424,1780897838000,-500.0,0.00013698,2]
[424441427,1780897838000,-500.0,0.00013698,2]
[424441425,1780897838000,-500.0,0.00013698,2]
[424441388,1780897838000,-255.0,0.00013285,2]
[424441411,1780897838000,-30749.97535616,0.00013679,2]
[424441412,1780897838000,-820.63622557,0.00013689,2]
[424441418,1780897838000,-500.0,0.00013698,2]
[424441406,1780897838000,-166.66,0.00013578,2]
[424441414,1780897838000,-500.0,0.00013698,2]
[424441397,1780897838000,-150.0,0.00013488,2]
[424441395,1780897838000,-169.83658506,0.00013488,2]
[424441393,1780897838000,-150.0,0.00013488,2]
[424441403,1780897838000,-55652.7312917,0.00013518,2]
[424441398,1780897838000,-150.0,0.00013488,2]
[424441400,1780897838000,-150.0,0.00013488,2]
[424441394,1780897838000,-150.25705167,0.00013488,2]
[424441392,1780897838000,-150.0,0.00013488,2]
[424441399,1780897838000,-150.0,0.00013488,2]
[424441402,1780897838000,-150.0,0.00013488,2]
[424441404,1780897838000,-150.0,0.00013541,2]
[424441405,1780897838000,-150.0,0.00013576,2]
[424441408,1780897838000,-500.0,0.00013625,2]
[424441407,1780897838000,-150.0,0.00013595,2]
[424441401,1780897838000,-203.80794025,0.00013488,2]
[424441446,1780897839000,-500.0,0.00013698,2]
[424441449,1780897839000,-500.0,0.00013698,2]
[424441450,1780897839000,-500.0,0.00013698,2]
[424441448,1780897839000,-322.71289429,0.00013698,2]
[424441456,1780897839000,-500.0,0.00013698,2]
[424441455,1780897839000,-500.0,0.00013698,2]
[424441452,1780897839000,-500.0,0.00013698,2]
[424441453,1780897839000,-500.0,0.00013698,2]
[424441458,1780897839000,-500.0,0.00013698,2]
[424441454,1780897839000,-500.0,0.00013698,2]
[424441469,1780897839000,-500.0,0.00013698,2]
[424441459,1780897839000,-500.0,0.00013698,2]
[424441461,1780897839000,-500.0,0.00013698,2]
[424441460,1780897839000,-500.0,0.00013698,2]
[424441465,1780897839000,-500.0,0.00013698,2]
[424441464,1780897839000,-500.0,0.00013698,2]
[424441451,1780897839000,-531.94649365,0.00013698,2]
[424441457,1780897839000,-500.0,0.00013698,2]
[424441429,1780897839000,-500.0,0.00013698,2]
[424441442,1780897839000,-500.0,0.00013698,2]
[424441468,1780897839000,-500.0,0.00013698,2]
[424441430,1780897839000,-500.0,0.00013698,2]
[424441431,1780897839000,-512.59450446,0.00013698,2]
[424441433,1780897839000,-500.0,0.00013698,2]
[424441432,1780897839000,-500.0,0.00013698,2]
[424441445,1780897839000,-500.0,0.00013698,2]
[424441444,1780897839000,-500.0,0.00013698,2]
[424441447,1780897839000,-500.0,0.00013698,2]
[424441443,1780897839000,-500.0,0.00013698,2]
[424441435,1780897839000,-527.31447559,0.00013698,2]
[424441434,1780897839000,-500.0,0.00013698,2]
[424441437,1780897839000,-500.0,0.00013698,2]
[424441439,1780897839000,-500.0,0.00013698,2]
[424441438,1780897839000,-500.0,0.00013698,2]
[424441440,1780897839000,-500.0,0.00013698,2]
[424441441,1780897839000,-500.0,0.00013698,2]
[424441436,1780897839000,-500.0,0.00013698,2]
[424441462,1780897839000,-238.00578641,0.00013698,2]
[424441498,1780897839000,-500.0,0.00013699,2]
[424441467,1780897839000,-500.0,0.00013698,2]
[424441485,1780897839000,-500.0,0.00013699,2]
[424441488,1780897839000,-500.0,0.00013699,2]
[424441490,1780897839000,-500.0,0.00013699,2]
[424441492,1780897839000,-500.0,0.00013699,2]
[424441487,1780897839000,-500.0,0.00013699,2]
[424441484,1780897839000,-500.0,0.00013699,2]
[424441496,1780897839000,-500.0,0.00013699,2]
[424441493,1780897839000,-500.0,0.00013699,2]
[424441495,1780897839000,-500.0,0.00013699,2]
[424441507,1780897839000,-150.0,0.00013737,2]
[424441506,1780897839000,-500.0,0.00013731,2]
[424441500,1780897839000,-500.0,0.00013699,2]
[424441501,1780897839000,-500.0,0.00013699,2]
[424441502,1780897839000,-500.0,0.00013699,2]
[424441504,1780897839000,-500.0,0.00013699,2]
[424441463,1780897839000,-500.0,0.00013698,2]
[424441497,1780897839000,-500.0,0.00013699,2]
[424441483,1780897839000,-428.27328653,0.00013699,2]
[424441499,1780897839000,-500.0,0.00013699,2]
[424441494,1780897839000,-500.0,0.00013699,2]
[424441466,1780897839000,-500.0,0.00013698,2]
[424441491,1780897839000,-500.0,0.00013699,2]
[424441471,1780897839000,-843.7,0.00013699,2]
[424441481,1780897839000,-500.0,0.00013699,2]
[424441470,1780897839000,-168.74,0.00013699,2]
[424441472,1780897839000,-1098.36,0.00013699,2]
[424441474,1780897839000,-166.66,0.00013699,2]
[424441475,1780897839000,-968.49,0.00013699,2]
[424441473,1780897839000,-200.0,0.00013699,2]
[424441476,1780897839000,-1000.0,0.00013699,2]
[424441480,1780897839000,-500.0,0.00013699,2]
[424441477,1780897839000,-1000.0,0.00013699,15]
[424441486,1780897839000,-500.0,0.00013699,2]
[424441479,1780897839000,-500.0,0.00013699,2]
[424441478,1780897839000,-1000.0,0.00013699,15]
[424441489,1780897839000,-500.0,0.00013699,2]
[424441482,1780897839000,-500.0,0.00013699,2]
[424441608,1780897840000,-505.49510151,0.00014688,2]
[424441607,1780897840000,-500.0,0.00014688,2]
[424441605,1780897840000,-150.0,0.00014665,2]
[424441595,1780897840000,-150.0,0.00014612,2]
[424441596,1780897840000,-55652.7312917,0.00014624,2]
[424441584,1780897840000,-150.0,0.00014505,2]
[424441593,1780897840000,-300.0,0.000146,5]
[424441586,1780897840000,-674.99830133,0.00014534,2]
[424441591,1780897840000,-30749.97535616,0.00014595,2]
[424441583,1780897840000,-1800.0,0.000145,5]
[424441606,1780897840000,-150.0,0.00014687,2]
[424441590,1780897840000,-500.0,0.00014591,2]
[424441582,1780897840000,-150.0,0.00014487,2]
[424441598,1780897840000,-500.0,0.00014627,2]
[424441610,1780897840000,-501.87117652,0.00014688,2]
[424441601,1780897840000,-500.0,0.00014627,2]
[424441597,1780897840000,-500.0,0.00014627,2]
[424441599,1780897840000,-500.0,0.00014627,2]
[424441600,1780897840000,-500.0,0.00014627,2]
[424441604,1780897840000,-150.0,0.00014634,2]
[424441602,1780897840000,-500.0,0.00014627,2]
[424441621,1780897840000,-500.0,0.00014688,2]
[424441620,1780897840000,-500.0,0.00014688,2]
[424441609,1780897840000,-500.0,0.00014688,2]
[424441612,1780897840000,-500.0,0.00014688,2]
[424441622,1780897840000,-500.0,0.00014688,2]
[424441589,1780897840000,-150.0,0.00014558,2]
[424441615,1780897840000,-500.0,0.00014688,2]
[424441603,1780897840000,-497.98493118,0.00014627,2]
[424441585,1780897840000,-457.12873569,0.0001451,2]
[424441566,1780897840000,-30749.97535616,0.0001429,2]
[424441588,1780897840000,-244.356866,0.00014551,2]
[424441611,1780897840000,-500.0,0.00014688,2]
[424441556,1780897840000,-177.392873,0.00014144,2]
[424441554,1780897840000,-150.0,0.00014112,2]
[424441555,1780897840000,-150.0,0.0001413,2]
[424441553,1780897840000,-161.49601252,0.00014112,2]
[424441558,1780897840000,-500.0,0.00014173,2]
[424441568,1780897840000,-1000.0,0.000143,5]
[424441557,1780897840000,-839.76,0.00014145,2]
[424441560,1780897840000,-150.0,0.00014193,2]
[424441564,1780897840000,-166.66,0.00014247,2]
[424441559,1780897840000,-150.0,0.00014183,2]
[424441562,1780897840000,-150.0,0.00014237,2]
[424441565,1780897840000,-150.0,0.00014281,2]
[424441587,1780897840000,-150.0,0.00014546,2]
[424441563,1780897840000,-150.0,0.00014237,2]
[424441569,1780897840000,-150.0,0.00014344,2]
[424441571,1780897840000,-500.0,0.0001436,2]
[424441570,1780897840000,-55652.7312917,0.00014347,2]
[424441572,1780897840000,-150.0,0.00014369,2]
[424441580,1780897840000,-433.0,0.00014468,2]
[424441579,1780897840000,-150.0,0.00014457,2]
[424441576,1780897840000,-1400.0,0.000144,5]
[424441577,1780897840000,-507.27012513,0.00014447,2]
[424441574,1780897840000,-150.0,0.00014387,2]
[424441573,1780897840000,-166.66,0.00014384,2]
[424441575,1780897840000,-150.0,0.00014398,2]
[424441578,1780897840000,-150.0,0.00014451,2]
[424441581,1780897840000,-150.0,0.00014487,2]
[424441561,1780897840000,-700.0,0.000142,5]
[424441614,1780897840000,-500.0,0.00014688,2]
[424441567,1780897840000,-150.0,0.00014291,2]
[424441618,1780897840000,-500.0,0.00014688,2]
[424441655,1780897840000,-435.0,0.00014688,2]
[424441659,1780897840000,-500.0,0.00014688,2]
[424441660,1780897840000,-435.0,0.00014688,2]
[424441654,1780897840000,-435.0,0.00014688,2]
[424441653,1780897840000,-435.0,0.00014688,2]
[424441656,1780897840000,-435.0,0.00014688,2]
[424441658,1780897840000,-500.0,0.00014688,2]
[424441657,1780897840000,-435.0,0.00014688,2]
[424441662,1780897840000,-500.0,0.00014688,2]
[424441663,1780897840000,-536.89809248,0.00014688,2]
[424441661,1780897840000,-500.0,0.00014688,2]
[424441669,1780897840000,-435.0,0.00014688,2]
[424441672,1780897840000,-446.0,0.00014688,2]
[424441652,1780897840000,-435.0,0.00014688,2]
[424441673,1780897840000,-446.0,0.00014688,2]
[424441671,1780897840000,-450.0,0.00014688,2]
[424441668,1780897840000,-435.0,0.00014688,2]
[424441664,1780897840000,-150.0,0.00014688,2]
[424441666,1780897840000,-435.0,0.00014688,2]
[424441665,1780897840000,-435.0,0.00014688,2]
[424441667,1780897840000,-435.0,0.00014688,2]
[424441675,1780897840000,-500.0,0.00014688,2]
[424441679,1780897840000,-446.0,0.00014688,2]
[424441676,1780897840000,-446.0,0.00014688,2]
[424441678,1780897840000,-446.0,0.00014688,2]
[424441674,1780897840000,-500.0,0.00014688,2]
[424441680,1780897840000,-446.0,0.00014688,2]
[424441616,1780897840000,-500.0,0.00014688,2]
[424441677,1780897840000,-247.20461285,0.00014688,2]
[424441649,1780897840000,-435.0,0.00014688,2]
[424441670,1780897840000,-435.0,0.00014688,2]
[424441650,1780897840000,-435.0,0.00014688,2]
[424441617,1780897840000,-500.0,0.00014688,2]
[424441651,1780897840000,-435.0,0.00014688,2]
[424441613,1780897840000,-500.0,0.00014688,2]
[424441619,1780897840000,-500.0,0.00014688,2]
[424441623,1780897840000,-500.0,0.00014688,2]
[424441631,1780897840000,-500.0,0.00014688,2]
[424441630,1780897840000,-500.0,0.00014688,2]
[424441632,1780897840000,-355.60355233,0.00014688,2]
[424441634,1780897840000,-500.0,0.00014688,2]
[424441625,1780897840000,-500.0,0.00014688,2]
[424441624,1780897840000,-500.0,0.00014688,2]
[424441629,1780897840000,-500.0,0.00014688,2]
[424441627,1780897840000,-500.0,0.00014688,2]
[424441628,1780897840000,-500.0,0.00014688,2]
[424441626,1780897840000,-500.0,0.00014688,2]
[424441633,1780897840000,-500.0,0.00014688,2]
[424441647,1780897840000,-435.0,0.00014688,2]
[424441636,1780897840000,-500.0,0.00014688,2]
[424441638,1780897840000,-500.0,0.00014688,2]
[424441646,1780897840000,-435.0,0.00014688,2]
[424441639,1780897840000,-500.0,0.00014688,2]
[424441645,1780897840000,-435.0,0.00014688,2]
[424441643,1780897840000,-435.0,0.00014688,2]
[424441644,1780897840000,-435.0,0.00014688,2]
[424441642,1780897840000,-435.0,0.00014688,2]
[424441637,1780897840000,-500.0,0.00014688,2]
[424441640,1780897840000,-500.0,0.00014688,2]
[424441635,1780897840000,-500.0,0.00014688,2]
[424441641,1780897840000,-502.03625046,0.00014688,2]
[424441648,1780897840000,-435.0,0.00014688,2]
[424441734,1780897841000,-500.0,0.00014688,2]
[424441720,1780897841000,-500.0,0.00014688,2]
[424441726,1780897841000,-500.0,0.00014688,2]
[424441724,1780897841000,-500.0,0.00014688,2]
[424441721,1780897841000,-500.0,0.00014688,2]
[424441711,1780897841000,-150.0,0.00014688,2]
[424441719,1780897841000,-500.0,0.00014688,2]
[424441717,1780897841000,-500.0,0.00014688,2]
[424441718,1780897841000,-500.0,0.00014688,2]
[424441714,1780897841000,-500.0,0.00014688,2]
[424441715,1780897841000,-500.0,0.00014688,2]
[424441723,1780897841000,-500.0,0.00014688,2]
[424441716,1780897841000,-500.0,0.00014688,2]
[424441725,1780897841000,-213.23313711,0.00014688,2]
[424441743,1780897841000,-500.0,0.00014688,2]
[424441733,1780897841000,-500.0,0.00014688,2]
[424441727,1780897841000,-500.0,0.00014688,2]
[424441730,1780897841000,-500.0,0.00014688,2]
[424441728,1780897841000,-500.0,0.00014688,2]
[424441732,1780897841000,-500.0,0.00014688,2]
[424441731,1780897841000,-500.0,0.00014688,2]
[424441737,1780897841000,-500.0,0.00014688,2]
[424441735,1780897841000,-500.0,0.00014688,2]
[424441736,1780897841000,-500.0,0.00014688,2]
[424441738,1780897841000,-500.0,0.00014688,2]
[424441746,1780897841000,-500.0,0.00014688,2]
[424441741,1780897841000,-500.0,0.00014688,2]
[424441713,1780897841000,-151.47284327,0.00014688,2]
[424441729,1780897841000,-500.0,0.00014688,2]
[424441722,1780897841000,-174.9440075,0.00014688,2]
[424441681,1780897841000,-446.0,0.00014688,2]
[424441705,1780897841000,-150.0,0.00014688,2]
[424441739,1780897841000,-565.06229658,0.00014688,2]
[424441683,1780897841000,-446.0,0.00014688,2]
[424441685,1780897841000,-446.0,0.00014688,2]
[424441684,1780897841000,-446.0,0.00014688,2]
[424441682,1780897841000,-446.0,0.00014688,2]
[424441687,1780897841000,-446.0,0.00014688,2]
[424441697,1780897841000,-446.0,0.00014688,2]
[424441688,1780897841000,-446.0,0.00014688,2]
[424441686,1780897841000,-446.0,0.00014688,2]
[424441689,1780897841000,-446.0,0.00014688,2]
[424441691,1780897841000,-446.0,0.00014688,2]
[424441693,1780897841000,-446.0,0.00014688,2]
[424441694,1780897841000,-446.0,0.00014688,2]
[424441712,1780897841000,-200.0,0.00014688,2]
[424441692,1780897841000,-446.0,0.00014688,2]